[Event "22nd Ruzomberok Open 2019"]
[Site "Ruzomberok"]
[Date "2019.06.30"]
[Round "2.34"]
[White "Majerova, Veronika"]
[Black "Mc Aleenan, Charles"]
[Result "0-1"]
[ECO "B01"]
[WhiteElo "1531"]
[BlackElo "1746"]
[Annotator "NA"]
[PlyCount "92"]
[EventDate "2019.06.29"]
[EventType "swiss"]
[EventCountry "SVK"]
[SourceTitle "playchess.com"]
[Source "ChessBase"]
[SourceQuality "1"]
[TimeControl "40/5400+30:1800+30"]

1. e4 {[%emt 0:00:00]} d5 {[%emt 0:00:00]} 2. exd5 {[%emt 0:00:00]} Qxd5 {[%emt 0:00:26]} 3. Nc3 {[%emt 0:00:00]} Qd6 {[%emt 0:00:15]} 4. d4 {[%emt 0:00:09]} Nf6 {[%emt 0:00:14]} 5. Nf3 {[%emt 0:00:26]} c6 {[%emt 0:00:12]} 6. Be2 {[%emt 0:00:33]} Bf5 {[%emt 0:00:31]} 7. Ne5 {[%emt 0:02:55]} Nbd7 {[%emt 0:06:26]} 8. Bf4 {[%emt 0:03:25]} Qb4 {[%emt 0:04:40]} 9. Nxd7 {[%emt 0:10:35]} Bxd7 {[%emt 0:07:30]} 10. Qd2 {[%emt 0:04:05]} g6 {[%emt 0:06:56]} 11. O-O {[%emt 0:05:46]} Bg7 {[%emt 0:05:35]} 12. Rfe1 {[%emt 0:06:26]} O-O {[%emt 0:02:41]} 13. Bf3 {[%emt 0:01:48]} Rfe8 {[%emt 0:06:49]} 14. Rad1 {[%emt 0:07:25]} Qa5 {[%emt 0:03:26]} 15. Be5 {[%emt 0:05:21]} Be6 {[%emt 0:03:36]} 16. Qf4 {[%emt 0:04:02]} Rac8 {[%emt 0:04:51]} 17. a3 {[%emt 0:15:16]} Nd5 {[%emt 0:04:06]} 18. Nxd5 {[%emt 0:01:54]} cxd5 {[%emt 0:00:18]} 19. Bxg7 {[%emt 0:03:27]} Kxg7 {[%emt 0:00:12]} 20. Re2 {[%emt 0:05:59]} Qc7 {[%emt 0:03:02]} 21. Qxc7 Rxc7 {[%emt 0:00:08]} 22. Rde1 {[%emt 0:05:19]} Rc4 {[%emt 0:03:46]} 23. c3 {[%emt 0:00:31]} a6 {[%emt 0:03:30]} 24. Rxe6 {[%emt 0:02:42]} fxe6 {[%emt 0:00:13]} 25. Rxe6 {[%emt 0:00:11]} Rc6 {[%emt 0:03:44]} 26. Re5 {[%emt 0:01:24]} Rd6 {[%emt 0:00:50]} 27. Bxd5 {[%emt 0:00:51]} b5 {[%emt 0:03:08]} 28. f4 {[%emt 0:02:39]} Kf6 {[%emt 0:02:16]} 29. g4 {[%emt 0:03:12]} e6 {[%emt 0:03:06]} 30. Be4 {[%emt 0:01:32]} Rb8 {[%emt 0:02:46]} 31. Bd3 {[%emt 0:01:16]} Rd5 {[%emt 0:03:07]} 32. Re1 {[%emt 0:02:19]} Rb6 {[%emt 0:01:50]} 33. Kf2 {[%emt 0:00:47]} a5 {[%emt 0:01:40]} 34. Kf3 {[%emt 0:02:11]} b4 {[%emt 0:04:45]} 35. axb4 {[%emt 0:00:27]} axb4 {[%emt 0:00:08]} 36. Bc4 {[%emt 0:00:27]} Rdd6 {[%emt 0:00:26]} 37. Ke4 {[%emt 0:00:08]} bxc3 {[%emt 0:00:36]} 38. bxc3 {[%emt 0:00:11]} Rdc6 {[%emt 0:01:35]} 39. g5+ {[%emt 0:00:44]} Kf7 {[%emt 0:02:45]} 40. Kd3 {[%emt 0:00:12]} Rb7 {[%emt 0:03:09]} 41. Re5 {[%emt 0:32:06]} Rbc7 {[%emt 0:31:14]} 42. Rc5 {[%emt 0:00:00]} Rxc5 {[%emt 0:00:00]} 43. dxc5 {[%emt 0:00:00]} Rxc5 {[%emt 0:00:00]} 44. Kd4 {[%emt 0:00:00]} Rf5 {[%emt 0:00:00]} 45. Ke4 {[%emt 0:00:00]} Ke7 {[%emt 0:00:00]} 46. Kf3 {[%emt 0:00:00]} e5 {[%emt 0:00:00]} 0-1

[Event "22nd Ruzomberok Open 2019"]
[Site "Ruzomberok"]
[Date "2019.06.30"]
[Round "2.35"]
[White "Laurencsik, Alexander"]
[Black "Horbal, Michal"]
[Result "1-0"]
[ECO "A04"]
[WhiteElo "1742"]
[BlackElo "1121"]
[Annotator "NA"]
[PlyCount "49"]
[EventDate "2019.06.29"]
[EventType "swiss"]
[EventCountry "SVK"]
[SourceTitle "playchess.com"]
[Source "ChessBase"]
[SourceQuality "1"]
[TimeControl "40/5400+30:1800+30"]

1. Nf3 {[%emt 0:00:00]} b6 {[%emt 0:00:04]} 2. g3 {[%emt 0:00:00]} Bb7 {[%emt 0:00:32]} 3. Bg2 {[%emt 0:00:00]} Nc6 {[%emt 0:00:56]} 4. d3 {[%emt 0:00:04]} Nf6 {[%emt 0:02:43]} 5. e4 {[%emt 0:00:24]} e5 {[%emt 0:03:13]} 6. O-O {[%emt 0:00:20]} Bc5 {[%emt 0:04:06]} 7. c3 {[%emt 0:01:52]} Qe7 {[%emt 0:02:58]} 8. a4 {[%emt 0:01:12]} O-O-O {[%emt 0:01:02]} 9. b4 {[%emt 0:01:03]} Bd6 {[%emt 0:01:56]} 10. Na3 {[%emt 0:00:46]} a5 {[%emt 0:01:06]} 11. bxa5 {[%emt 0:01:07]} Nxa5 {[%emt 0:01:24]} 12. Nb5 {[%emt 0:00:50]} Kb8 {[%emt 0:00:42]} 13. Nxd6 {[%emt 0:07:18]} Qxd6 {[%emt 0:02:12]} 14. Ba3 {[%emt 0:01:22]} Qe6 {[%emt 0:04:51]} 15. c4 {[%emt 0:02:35]} c5 {[%emt 0:03:44]} 16. Rb1 {[%emt 0:03:39]} h6 {[%emt 0:04:12]} 17. Qd2 {[%emt 0:01:32]} g5 {[%emt 0:00:23]} 18. Rb2 {[%emt 0:04:59]} Qg4 {[%emt 0:03:57]} 19. Rxb6 {[%emt 0:00:41]} Nc6 {[%emt 0:05:23]} 20. Rfb1 {[%emt 0:00:20]} Kc7 {[%emt 0:00:55]} 21. Rxb7+ {[%emt 0:00:39]} Kd6 {[%emt 0:00:18]} 22. Qe3 {[%emt 0:01:22]} Qh5 {[%emt 0:01:22]} 23. Qxc5+ {[%emt 0:01:06]} Ke6 {[%emt 0:00:29]} 24. Nxe5 {[%emt 0:00:20]} d6 {[%emt 0:00:52]} 25. Qxc6 {[%emt 0:00:49]} 1-0

[Event "22nd Ruzomberok Open 2019"]
[Site "Ruzomberok"]
[Date "2019.06.30"]
[Round "2.36"]
[White "Petrasko, Jozef"]
[Black "Zentko, Ladislav"]
[Result "0-1"]
[ECO "A34"]
[WhiteElo "1455"]
[BlackElo "1732"]
[Annotator "NA"]
[PlyCount "115"]
[EventDate "2019.06.29"]
[EventType "swiss"]
[EventCountry "SVK"]
[SourceTitle "playchess.com"]
[Source "ChessBase"]
[SourceQuality "1"]
[TimeControl "40/5400+30:1800+30"]

1. c4 {[%emt 0:00:00]} c5 {[%emt 0:00:00]} 2. Nc3 {[%emt 0:00:15]} Nf6 {[%emt 0:00:25]} 3. g3 {[%emt 0:00:17]} Nc6 {[%emt 0:00:18]} 4. Bg2 {[%emt 0:00:16]} e6 {[%emt 0:02:08]} 5. e3 {[%emt 0:01:07]} Be7 {[%emt 0:01:51]} 6. Nge2 {[%emt 0:01:00]} d5 {[%emt 0:01:22]} 7. cxd5 {[%emt 0:00:18]} exd5 {[%emt 0:00:12]} 8. d4 {[%emt 0:05:39]} cxd4 {[%emt 0:02:02]} 9. Nxd4 {[%emt 0:00:45]} O-O {[%emt 0:01:34]} 10. O-O {[%emt 0:01:58]} Re8 {[%emt 0:03:55]} 11. b3 {[%emt 0:03:29]} Bf8 {[%emt 0:08:27]} 12. Bb2 {[%emt 0:00:23]} Bg4 {[%emt 0:05:55]} 13. Qd2 {[%emt 0:12:37]} Bb4 {[%emt 0:02:24]} 14. Rac1 {[%emt 0:00:15]} Rc8 {[%emt 0:15:45]} 15. h3 {[%emt 0:00:58]} Bh5 {[%emt 0:00:55]} 16. a3 {[%emt 0:01:23]} Ba5 {[%emt 0:07:51]} 17. b4 {[%emt 0:02:04]} Bb6 {[%emt 0:03:46]} 18. Nce2 {[%emt 0:02:48]} Ne4 {[%emt 0:04:49]} 19. Bxe4 {[%emt 0:02:26]} dxe4 {[%emt 0:00:17]} 20. g4 {[%emt 0:00:21]} Bg6 {[%emt 0:02:01]} 21. Rfd1 {[%emt 0:00:19]} Qg5 {[%emt 0:05:46]} 22. Nxc6 {[%emt 0:01:23]} bxc6 {[%emt 0:01:16]} 23. Nf4 {[%emt 0:01:19]} h5 {[%emt 0:01:37]} 24. Qc3 {[%emt 0:04:21]} f6 {[%emt 0:00:56]} 25. Nxg6 {[%emt 0:03:31]} Qxg6 {[%emt 0:00:02]} 26. Qc4+ {[%emt 0:03:38]} Kh7 {[%emt 0:00:11]} 27. Qe2 {[%emt 0:00:20]} f5 {[%emt 0:00:37]} 28. Rd7 {[%emt 0:00:33]} Rc7 {[%emt 0:02:15]} 29. Rxc7 {[%emt 0:07:49]} Bxc7 {[%emt 0:00:02]} 30. f3 {[%emt 0:02:01]} exf3 {[%emt 0:03:51]} 31. Qxf3 {[%emt 0:00:42]} fxg4 {[%emt 0:05:03]} 32. hxg4 {[%emt 0:00:43]} hxg4 {[%emt 0:00:12]} 33. Qh1+ {[%emt 0:08:45]} Qh6 {[%emt 0:01:21]} 34. Qxh6+ {[%emt 0:01:52]} gxh6 {[%emt 0:00:02]} 35. Rxc6 {[%emt 0:00:37]} Bb6 {[%emt 0:09:34]} 36. Bd4 {[%emt 0:00:20]} Bxd4 {[%emt 0:02:08]} 37. exd4 {[%emt 0:00:18]} Rd8 {[%emt 0:00:39]} 38. Rc7+ {[%emt 0:01:04]} Kg6 {[%emt 0:00:04]} 39. Rc6+ {[%emt 0:00:27]} Kg5 {[%emt 0:00:40]} 40. Rc5+ {[%emt 0:00:11]} Kf4 {[%emt 0:00:09]} 41. d5 {[%emt 0:31:10]} h5 {[%emt 0:33:46]} 42. Kg2 {[%emt 0:01:07]} h4 {[%emt 0:01:44]} 43. Rc4+ {[%emt 0:01:40]} Kf5 {[%emt 0:00:12]} 44. Kf2 {[%emt 0:00:16]} Rxd5 {[%emt 0:01:02]} 45. Ke3 {[%emt 0:00:45]} Re5+ {[%emt 0:00:00]} 46. Kf2 {[%emt 0:00:00]} Re4 {[%emt 0:00:00]} 47. Rc7 {[%emt 0:00:00]} Rf4+ 48. Ke3 Rf3+ {[%emt 0:00:00]} 49. Ke2 {[%emt 0:00:00]} Rxa3 {[%emt 0:00:00]} 50. Rf7+ {[%emt 0:00:00]} Ke4 {[%emt 0:00:00]} 51. Re7+ {[%emt 0:00:00]} Kf4 {[%emt 0:00:00]} 52. b5 {[%emt 0:00:00]} Ra2+ {[%emt 0:00:00]} 53. Kd3 {[%emt 0:00:00]} h3 {[%emt 0:00:00]} 54. Rf7+ {[%emt 0:00:00]} Kg3 {[%emt 0:00:00]} 55. Ke3 {[%emt 0:00:00]} h2 {[%emt 0:00:00]} 56. Rf1 {[%emt 0:00:00]} Kg2 {[%emt 0:00:00]} 57. Rf4 {[%emt 0:00:00]} g3 {[%emt 0:00:00]} 58. Rf3 0-1

[Event "22nd Ruzomberok Open 2019"]
[Site "Ruzomberok"]
[Date "2019.06.30"]
[Round "2.38"]
[White "Berglund, Jan S."]
[Black "Malinovsky, Jozef"]
[Result "1/2-1/2"]
[ECO "B21"]
[WhiteElo "2013"]
[BlackElo "1715"]
[Annotator "NA"]
[PlyCount "146"]
[EventDate "2019.06.29"]
[EventType "swiss"]
[EventCountry "SVK"]
[SourceTitle "playchess.com"]
[Source "ChessBase"]
[SourceQuality "1"]
[TimeControl "40/5400+30:1800+30"]

1. e4 {[%emt 0:00:00]} c5 {[%emt 0:00:00]} 2. f4 {[%emt 0:00:16]} Nc6 {[%emt 0:00:57]} 3. Nf3 {[%emt 0:00:40]} d6 {[%emt 0:01:58]} 4. Bc4 {[%emt 0:00:33]} e6 {[%emt 0:02:16]} 5. O-O {[%emt 0:00:43]} Be7 {[%emt 0:01:05]} 6. d3 {[%emt 0:00:41]} a6 {[%emt 0:02:44]} 7. a3 {[%emt 0:00:58]} b5 {[%emt 0:01:30]} 8. Ba2 {[%emt 0:00:33]} Qc7 {[%emt 0:01:08]} 9. Ng5 {[%emt 0:00:53]} Nf6 {[%emt 0:01:32]} 10. c3 {[%emt 0:01:12]} h6 {[%emt 0:04:32]} 11. Nf3 {[%emt 0:01:21]} Bb7 {[%emt 0:03:43]} 12. Be3 {[%emt 0:01:08]} Ng4 {[%emt 0:00:30]} 13. Qe2 {[%emt 0:01:28]} Nxe3 {[%emt 0:03:15]} 14. Qxe3 {[%emt 0:00:31]} a5 {[%emt 0:07:37]} 15. f5 {[%emt 0:01:58]} e5 {[%emt 0:03:36]} 16. Nbd2 {[%emt 0:01:19]} Bf6 {[%emt 0:03:17]} 17. Qf2 {[%emt 0:01:12]} a4 {[%emt 0:00:38]} 18. Nh4 {[%emt 0:01:34]} Qe7 {[%emt 0:02:55]} 19. Ndf3 {[%emt 0:02:12]} O-O-O {[%emt 0:01:08]} 20. b3 {[%emt 0:00:49]} axb3 {[%emt 0:01:46]} 21. Bxb3 {[%emt 0:00:28]} Na5 {[%emt 0:00:44]} 22. Rfb1 {[%emt 0:01:07]} Nxb3 {[%emt 0:01:34]} 23. Rxb3 {[%emt 0:00:21]} Bc6 {[%emt 0:05:26]} 24. Rab1 {[%emt 0:00:43]} Kd7 {[%emt 0:01:36]} 25. a4 {[%emt 0:00:32]} Bxh4 {[%emt 0:08:56]} 26. Nxh4 {[%emt 0:01:00]} Ke8 {[%emt 0:06:10]} 27. axb5 {[%emt 0:00:36]} Bb7 {[%emt 0:00:25]} 28. Ra1 {[%emt 0:00:42]} Rb8 {[%emt 0:04:43]} 29. b6 {[%emt 0:00:59]} Qd8 {[%emt 0:03:40]} 30. Ra7 {[%emt 0:00:49]} Rf8 {[%emt 0:03:42]} 31. Qg3 {[%emt 0:01:05]} Qg5 {[%emt 0:01:20]} 32. Qxg5 {[%emt 0:01:24]} hxg5 {[%emt 0:00:01]} 33. Nf3 {[%emt 0:00:38]} f6 {[%emt 0:01:15]} 34. g3 {[%emt 0:00:47]} Rf7 {[%emt 0:03:52]} 35. Nd2 {[%emt 0:00:44]} Rd7 {[%emt 0:00:25]} 36. Nc4 {[%emt 0:01:09]} Kd8 {[%emt 0:01:46]} 37. Na5 {[%emt 0:00:40]} Kc8 {[%emt 0:00:42]} 38. Kf2 {[%emt 0:01:46]} g4 {[%emt 0:00:42]} 39. Kg2 {[%emt 0:01:07]} d5 {[%emt 0:00:14]} 40. Rb5 {[%emt 0:02:36]} dxe4 {[%emt 0:01:16]} 41. Rxc5+ {[%emt 0:30:25]} Kd8 {[%emt 0:30:17]} 42. Nxb7+ {[%emt 0:01:35]} Rbxb7 {[%emt 0:00:29]} 43. Rc7 {[%emt 0:03:39]} Rdxc7 {[%emt 0:01:32]} 44. bxc7+ {[%emt 0:00:40]} Rxc7 {[%emt 0:00:28]} 45. Rxc7 {[%emt 0:00:18]} Kxc7 {[%emt 0:00:08]} 46. dxe4 Kd6 47. h3 {[%emt 0:05:48]} Kc5 {[%emt 0:00:58]} 48. hxg4 {[%emt 0:00:07]} Kc4 {[%emt 0:00:11]} 49. Kf3 {[%emt 0:01:17]} Kxc3 {[%emt 0:00:06]} 50. g5 {[%emt 0:00:17]} fxg5 {[%emt 0:00:20]} 51. Kg4 {[%emt 0:00:06]} Kd4 {[%emt 0:00:11]} 52. Kxg5 {[%emt 0:00:19]} Kxe4 {[%emt 0:00:11]} 53. Kg6 {[%emt 0:00:25]} Kd3 {[%emt 0:01:10]} 54. Kxg7 e4 55. f6 {[%emt 0:01:19]} e3 {[%emt 0:00:35]} 56. f7 {[%emt 0:00:15]} e2 {[%emt 0:00:04]} 57. f8=Q {[%emt 0:00:31]} e1=Q {[%emt 0:00:03]} 58. Qd6+ {[%emt 0:00:44]} Kc4 {[%emt 0:00:33]} 59. Qc6+ {[%emt 0:00:28]} Kb4 {[%emt 0:00:42]} 60. Qb6+ {[%emt 0:00:29]} Kc4 {[%emt 0:00:16]} 61. Qc6+ {[%emt 0:00:18]} Kb4 {[%emt 0:01:31]} 62. Qd6+ {[%emt 0:00:30]} Kb5 {[%emt 0:00:30]} 63. Qb8+ {[%emt 0:00:30]} Kc6 {[%emt 0:00:41]} 64. Qa8+ {[%emt 0:00:25]} Kb6 {[%emt 0:00:17]} 65. Qd8+ {[%emt 0:00:30]} Kc6 {[%emt 0:00:12]} 66. Qf6+ {[%emt 0:00:27]} Kd5 {[%emt 0:00:53]} 67. Qg5+ {[%emt 0:00:44]} Kc4 {[%emt 0:01:32]} 68. Qf4+ {[%emt 0:00:30]} Kc5 {[%emt 0:00:23]} 69. g4 {[%emt 0:01:21]} Qe7+ {[%emt 0:00:21]} 70. Qf7 {[%emt 0:00:34]} Qg5+ {[%emt 0:00:23]} 71. Qg6 {[%emt 0:00:30]} Qe7+ {[%emt 0:00:10]} 72. Kh6 {[%emt 0:00:34]} Qf8+ {[%emt 0:00:27]} 73. Kh7 {[%emt 0:00:32]} Qe7+ {[%emt 0:00:15]} 1/2-1/2

[Event "22nd Ruzomberok Open 2019"]
[Site "Ruzomberok"]
[Date "2019.06.30"]
[Round "2.39"]
[White "Konkol, Emil"]
[Black "Brennan, Samuel J"]
[Result "1-0"]
[ECO "C65"]
[WhiteElo "1714"]
[BlackElo "1678"]
[Annotator "NA"]
[PlyCount "53"]
[EventDate "2019.06.29"]
[EventType "swiss"]
[EventCountry "SVK"]
[SourceTitle "playchess.com"]
[Source "ChessBase"]
[SourceQuality "1"]
[TimeControl "40/5400+30:1800+30"]

1. e4 {[%emt 0:00:00]} e5 {[%emt 0:00:00]} 2. Nf3 {[%emt 0:00:00]} Nc6 {[%emt 0:00:24]} 3. Bb5 {[%emt 0:00:03]} Nf6 {[%emt 0:00:03]} 4. d3 {[%emt 0:00:34]} a6 {[%emt 0:00:20]} 5. Bxc6 {[%emt 0:00:13]} bxc6 {[%emt 0:00:03]} 6. Nxe5 {[%emt 0:00:35]} Bd6 {[%emt 0:01:28]} 7. Nc4 {[%emt 0:00:43]} O-O {[%emt 0:00:33]} 8. O-O {[%emt 0:00:14]} c5 {[%emt 0:01:13]} 9. e5 {[%emt 0:00:18]} Bxe5 {[%emt 0:02:01]} 10. Nxe5 {[%emt 0:00:29]} Re8 {[%emt 0:00:12]} 11. Nf3 {[%emt 0:00:59]} d5 {[%emt 0:01:28]} 12. Bg5 {[%emt 0:01:07]} Qd6 {[%emt 0:01:12]} 13. Bxf6 {[%emt 0:01:38]} Qxf6 {[%emt 0:00:06]} 14. c3 {[%emt 0:00:18]} Bg4 {[%emt 0:01:41]} 15. Nbd2 {[%emt 0:00:18]} Qg6 {[%emt 0:01:39]} 16. Qa4 {[%emt 0:00:31]} Bh3 {[%emt 0:01:34]} 17. Nh4 {[%emt 0:00:18]} Qxd3 {[%emt 0:02:24]} 18. gxh3 {[%emt 0:01:07]} Qxd2 {[%emt 0:01:25]} 19. Qc6 {[%emt 0:03:53]} Rab8 {[%emt 0:06:25]} 20. Qxc5 {[%emt 0:01:03]} Rxb2 {[%emt 0:00:26]} 21. Rad1 {[%emt 0:02:26]} Qg5+ {[%emt 0:02:30]} 22. Ng2 {[%emt 0:00:12]} Rd8 {[%emt 0:05:28]} 23. Qxc7 {[%emt 0:01:50]} Rxa2 {[%emt 0:00:15]} 24. Qg3 {[%emt 0:01:17]} Qf6 {[%emt 0:01:45]} 25. Ne3 {[%emt 0:02:52]} Qe6 {[%emt 0:06:57]} 26. Rxd5 {[%emt 0:02:05]} Rxd5 {[%emt 0:01:17]} 27. Qb8+ {[%emt 0:00:14]} 1-0

[Event "22nd Ruzomberok Open 2019"]
[Site "Ruzomberok"]
[Date "2019.07.01"]
[Round "3.1"]
[White "Hros, Roman"]
[Black "Jablonicky, Martin"]
[Result "1/2-1/2"]
[ECO "C50"]
[WhiteElo "2195"]
[BlackElo "2378"]
[Annotator "NA"]
[PlyCount "177"]
[EventDate "2019.06.29"]
[EventType "swiss"]
[EventCountry "SVK"]
[SourceTitle "playchess.com"]
[Source "ChessBase"]
[SourceQuality "1"]
[TimeControl "40/5400+30:1800+30"]

1. e4 {[%emt 0:00:00]} e5 {[%emt 0:00:00]} 2. Bc4 {[%emt 0:00:21]} Nf6 {[%emt 0:00:07]} 3. d3 {[%emt 0:00:11]} Bc5 {[%emt 0:03:00]} 4. Nf3 {[%emt 0:00:53]} Nc6 {[%emt 0:00:11]} 5. O-O {[%emt 0:02:21]} d6 {[%emt 0:00:22]} 6. c3 {[%emt 0:01:12]} h6 {[%emt 0:00:15]} 7. b4 {[%emt 0:04:22]} Bb6 {[%emt 0:00:07]} 8. h3 {[%emt 0:01:51]} g5 {[%emt 0:06:49]} 9. Nh2 {[%emt 0:07:04]} Rg8 {[%emt 0:09:47]} 10. Qf3 {[%emt 0:13:44]} Qe7 {[%emt 0:01:24]} 11. Ng4 {[%emt 0:01:39]} Nxg4 {[%emt 0:05:00]} 12. hxg4 {[%emt 0:00:03]} Nxb4 {[%emt 0:00:17]} 13. Nd2 {[%emt 0:06:42]} Nc6 {[%emt 0:00:30]} 14. g3 {[%emt 0:00:28]} Be6 {[%emt 0:02:35]} 15. Kg2 {[%emt 0:00:54]} O-O-O {[%emt 0:00:29]} 16. a4 {[%emt 0:01:07]} Na5 {[%emt 0:01:15]} 17. Ba2 {[%emt 0:02:30]} Qd7 {[%emt 0:03:40]} 18. Bxe6 {[%emt 0:02:07]} fxe6 {[%emt 0:00:09]} 19. Bb2 {[%emt 0:00:33]} h5 {[%emt 0:02:23]} 20. gxh5 {[%emt 0:07:32]} g4 {[%emt 0:00:06]} 21. Qe2 {[%emt 0:00:10]} Qh7 {[%emt 0:04:53]} 22. Rh1 {[%emt 0:01:49]} Rdf8 {[%emt 0:00:21]} 23. Raf1 {[%emt 0:05:46]} Rg5 {[%emt 0:09:46]} 24. f3 {[%emt 0:05:06]} gxf3+ {[%emt 0:00:24]} 25. Rxf3 {[%emt 0:00:35]} Rh8 {[%emt 0:00:21]} 26. Rff1 {[%emt 0:03:45]} Rxh5 {[%emt 0:07:58]} 27. Qxh5 {[%emt 0:00:26]} Qxh5 {[%emt 0:00:14]} 28. Rxh5 {[%emt 0:00:01]} Rxh5 {[%emt 0:00:07]} 29. Rf3 {[%emt 0:00:50]} Kd7 {[%emt 0:02:43]} 30. g4 {[%emt 0:01:19]} Rh7 {[%emt 0:00:29]} 31. Kg3 {[%emt 0:07:40]} c6 {[%emt 0:04:32]} 32. c4 {[%emt 0:09:11]} Bd8 {[%emt 0:04:50]} 33. Bc3 {[%emt 0:01:10]} c5 {[%emt 0:00:41]} 34. Bxa5 {[%emt 0:00:53]} Bxa5 {[%emt 0:00:02]} 35. Rf2 {[%emt 0:01:19]} Rh1 {[%emt 0:06:55]} 36. Rf1 {[%emt 0:00:42]} Rxf1 {[%emt 0:01:21]} 37. Nxf1 {[%emt 0:00:01]} Be1+ {[%emt 0:01:27]} 38. Kh3 {[%emt 0:00:01]} Ke7 {[%emt 0:05:07]} 39. g5 {[%emt 0:00:37]} Kf7 {[%emt 0:06:04]} 40. Kg4 {[%emt 0:01:16]} Kg6 {[%emt 0:00:56]} 41. Nh2 {[%emt 0:30:21]} Ba5 {[%emt 0:32:16]} 42. Nf3 {[%emt 0:00:23]} Bd8 {[%emt 0:00:09]} 43. Nh4+ Kg7 44. Kh5 {[%emt 0:00:23]} Be7 {[%emt 0:04:04]} 45. Nf3 {[%emt 0:05:51]} Bf8 {[%emt 0:00:01]} 46. Kh4 {[%emt 0:00:00]} Kg6 {[%emt 0:00:00]} 47. Kg4 {[%emt 0:00:00]} Be7 {[%emt 0:00:00]} 48. Nh4+ {[%emt 0:00:00]} Kh7 {[%emt 0:00:00]} 49. Kh5 {[%emt 0:00:00]} Kg7 {[%emt 0:00:00]} 50. Ng2 {[%emt 0:00:00]} Bd8 {[%emt 0:00:00]} 51. Ne1 {[%emt 0:00:00]} Be7 {[%emt 0:00:00]} 52. Nc2 {[%emt 0:00:00]} Bd8 {[%emt 0:00:00]} 53. Na3 {[%emt 0:00:00]} Bc7 {[%emt 0:00:00]} 54. Nb5 {[%emt 0:00:00]} Bb8 {[%emt 0:00:00]} 55. g6 {[%emt 0:00:00]} b6 {[%emt 0:00:00]} 56. Nc3 {[%emt 0:00:00]} Bc7 {[%emt 0:00:00]} 57. Nd1 {[%emt 0:00:00]} Bd8 {[%emt 0:00:00]} 58. Ne3 {[%emt 0:00:00]} Be7 {[%emt 0:00:00]} 59. Ng4 {[%emt 0:00:00]} Bf8 {[%emt 0:02:43]} 60. Nh6 {[%emt 0:00:00]} Kf6 {[%emt 0:06:08]} 61. Nf7 {[%emt 0:00:00]} a6 {[%emt 0:01:34]} 62. Nd8 {[%emt 0:00:00]} Ke7 {[%emt 0:00:15]} 63. Nf7 {[%emt 0:02:07]} Bg7 {[%emt 0:01:23]} 64. Kg5 {[%emt 0:02:05]} d5 {[%emt 0:01:35]} 65. Kg4 {[%emt 0:02:54]} dxc4 {[%emt 0:01:57]} 66. dxc4 {[%emt 0:00:01]} Kf6 {[%emt 0:00:54]} 67. Nd6 {[%emt 0:00:46]} Bh6 {[%emt 0:01:20]} 68. Kh5 {[%emt 0:07:17]} Bf8 {[%emt 0:00:59]} 69. Nc8 {[%emt 0:03:05]} b5 {[%emt 0:00:05]} 70. axb5 {[%emt 0:00:10]} axb5 {[%emt 0:00:05]} 71. cxb5 {[%emt 0:00:12]} c4 {[%emt 0:00:04]} 72. Nb6 {[%emt 0:00:23]} c3 {[%emt 0:00:26]} 73. Nd7+ {[%emt 0:00:06]} Ke7 {[%emt 0:00:43]} 74. Nxe5 {[%emt 0:00:20]} Kd6 {[%emt 0:01:23]} 75. Nd3 {[%emt 0:00:01]} Kc7 {[%emt 0:00:05]} 76. Kg5 {[%emt 0:02:33]} Bg7 {[%emt 0:00:14]} 77. Nb4 {[%emt 0:00:47]} Kb6 {[%emt 0:00:21]} 78. Kf4 {[%emt 0:00:26]} Kxb5 {[%emt 0:00:06]} 79. Nc2 {[%emt 0:00:09]} Kc4 {[%emt 0:01:17]} 80. Ke3 {[%emt 0:00:07]} Bh6+ {[%emt 0:00:32]} 81. Ke2 {[%emt 0:00:01]} e5 {[%emt 0:00:24]} 82. Ne3+ {[%emt 0:01:00]} Kb3 {[%emt 0:01:00]} 83. Kd3 {[%emt 0:00:20]} Bf8 {[%emt 0:01:09]} 84. Nc2 {[%emt 0:00:38]} Kb2 {[%emt 0:00:30]} 85. Ne3 {[%emt 0:00:22]} Kb3 {[%emt 0:00:21]} 86. Nc2 {[%emt 0:00:18]} Bg7 {[%emt 0:00:10]} 87. Ne3 {[%emt 0:00:39]} Bh6 {[%emt 0:00:09]} 88. Nc2 {[%emt 0:00:15]} Kb2 {[%emt 0:00:05]} 89. Nb4 {[%emt 0:00:12]} 1/2-1/2

[Event "22nd Ruzomberok Open 2019"]
[Site "Ruzomberok"]
[Date "2019.07.01"]
[Round "3.2"]
[White "Farkas, Gabor"]
[Black "Mrvova, Alena"]
[Result "1-0"]
[ECO "A34"]
[WhiteElo "2353"]
[BlackElo "2153"]
[Annotator "NA"]
[PlyCount "51"]
[EventDate "2019.06.29"]
[EventType "swiss"]
[EventCountry "SVK"]
[SourceTitle "playchess.com"]
[Source "ChessBase"]
[SourceQuality "1"]
[TimeControl "40/5400+30:1800+30"]

1. c4 {[%emt 0:00:00]} c5 {[%emt 0:00:27]} 2. Nc3 {[%emt 0:00:00]} e6 {[%emt 0:00:42]} 3. Nf3 {[%emt 0:00:20]} Nc6 {[%emt 0:01:00]} 4. g3 {[%emt 0:01:10]} f5 {[%emt 0:03:41]} 5. Bg2 {[%emt 0:03:15]} Nf6 {[%emt 0:01:07]} 6. O-O {[%emt 0:01:02]} Be7 {[%emt 0:01:17]} 7. d4 {[%emt 0:05:59]} cxd4 {[%emt 0:04:07]} 8. Nxd4 {[%emt 0:00:15]} O-O {[%emt 0:01:03]} 9. a3 {[%emt 0:09:23]} Ng4 {[%emt 0:01:52]} 10. e3 {[%emt 0:13:11]} Kh8 {[%emt 0:04:03]} 11. h3 {[%emt 0:05:30]} Nge5 {[%emt 0:00:40]} 12. Qe2 {[%emt 0:00:28]} Qc7 {[%emt 0:04:15]} 13. Nxc6 {[%emt 0:02:26]} Nxc6 {[%emt 0:03:19]} 14. e4 {[%emt 0:11:24]} Nd4 {[%emt 0:06:17]} 15. Qd3 {[%emt 0:01:12]} Bf6 {[%emt 0:03:55]} 16. Bf4 {[%emt 0:00:22]} e5 {[%emt 0:04:22]} 17. Nd5 {[%emt 0:02:22]} Qd8 {[%emt 0:01:30]} 18. Be3 {[%emt 0:01:54]} fxe4 {[%emt 0:00:54]} 19. Bxe4 {[%emt 0:00:38]} d6 {[%emt 0:00:04]} 20. Bxd4 {[%emt 0:02:23]} exd4 {[%emt 0:00:36]} 21. Bxh7 {[%emt 0:01:37]} Bxh3 {[%emt 0:01:21]} 22. Rfe1 {[%emt 0:00:54]} Be5 {[%emt 0:13:45]} 23. f4 {[%emt 0:04:53]} Bf6 {[%emt 0:00:06]} 24. Re2 {[%emt 0:05:32]} g5 {[%emt 0:10:33]} 25. g4 {[%emt 0:04:12]} Qd7 {[%emt 0:01:32]} 26. Bf5 {[%emt 0:00:18]} 1-0

[Event "22nd Ruzomberok Open 2019"]
[Site "Ruzomberok"]
[Date "2019.07.01"]
[Round "3.3"]
[White "Bombek, Peter"]
[Black "Vojtek, Vladimir"]
[Result "1/2-1/2"]
[ECO "A45"]
[WhiteElo "2159"]
[BlackElo "2313"]
[Annotator "NA"]
[PlyCount "23"]
[EventDate "2019.06.29"]
[EventType "swiss"]
[EventCountry "SVK"]
[SourceTitle "playchess.com"]
[Source "ChessBase"]
[SourceQuality "1"]
[TimeControl "40/5400+30:1800+30"]

1. d4 {[%emt 0:03:45]} Nf6 {[%emt 0:14:52]} 2. Bg5 {[%emt 0:00:18]} e6 {[%emt 0:00:06]} 3. e4 {[%emt 0:00:06]} h6 {[%emt 0:00:04]} 4. Bxf6 {[%emt 0:00:04]} Qxf6 {[%emt 0:00:03]} 5. Nf3 {[%emt 0:00:15]} c5 {[%emt 0:00:05]} 6. Nc3 {[%emt 0:00:26]} cxd4 {[%emt 0:00:19]} 7. Qxd4 {[%emt 0:00:11]} Qxd4 {[%emt 0:00:06]} 8. Nxd4 {[%emt 0:00:05]} a6 {[%emt 0:00:04]} 9. O-O-O {[%emt 0:00:39]} Nc6 {[%emt 0:00:06]} 10. Nxc6 {[%emt 0:00:28]} dxc6 {[%emt 0:00:12]} 11. f4 {[%emt 0:00:51]} Be7 {[%emt 0:00:15]} 12. Be2 {[%emt 0:00:16]} 1/2-1/2